fUSD/lending_fUSD_20250530
["ID","MTS","AMOUNT","RATE_DAILY","PERIOD"]
[363183431,1748616960125,-168.35281345,0.00019532,2]
[363183432,1748617058030,395.31,0.00019186,2]
[363183433,1748617202972,-810.69718655,0.00019532,2]
[363183434,1748617202996,-250.0,0.00019647,2]
[363183435,1748617203019,-164.53,0.00019762,2]
[363183436,1748617203049,-250.0,0.00019848,2]
[363183437,1748617203075,-1000.0,0.0001997,2]
[363183438,1748617203101,-300.0,0.00019999,2]
[363183439,1748617203128,-1200.0,0.00019999,2]
[363183440,1748617203160,-2999.97,0.0002,2]
[363183441,1748617203188,-3000.0,0.0002,2]
[363183442,1748617203214,-3000.0,0.0002,2]
[363183443,1748617203240,-3000.0,0.0002,2]
[363183444,1748617203265,-3000.0,0.0002,2]
[363183445,1748617203290,-1752.67,0.0002,2]
[363183446,1748617203316,-611.89,0.00020669,2]
[363183447,1748617203341,-375.0,0.000207,2]
[363183448,1748617203366,-961.0,0.000207,2]
[363183449,1748617203396,-194.72,0.0002074,2]
[363183450,1748617203421,-1713.3,0.00020901,2]
[363183451,1748617203448,-165.09,0.00020921,2]
[363183452,1748617203472,-1304.64,0.00021015,2]
[363183453,1748617203510,-2878.26079671,0.000211,4]
[363183454,1748617203538,-585.395,0.00021484,2]
[363183455,1748617203563,-1152.78,0.00021485,2]
[363183456,1748617203588,-150.99,0.00021485,2]
[363183457,1748617203612,-150.99,0.00021485,2]
[363183458,1748617203641,-9999.99,0.00021485,2]
[363183459,1748617203668,-9999.99,0.00021485,2]
[363183460,1748617203694,-499.99,0.00021485,2]
[363183461,1748617203718,-250.0,0.00021485,2]
[363183462,1748617204116,-882.0,0.0002152,2]
[363183463,1748617204144,-1155.0,0.0002152,2]
[363183464,1748617204180,-2878.26079661,0.00021521,5]
[363183465,1748617204206,-237.0,0.000216,2]
[363183466,1748617204238,-1500.0,0.00021644,2]
[363183467,1748617204264,-1000.0,0.00021817,2]
[363183468,1748617204290,-2500.0,0.00021817,2]
[363183469,1748617204314,-163.78818297,0.00021817,2]
[363183470,1748617204340,-2013.45480294,0.00021817,2]
[363183471,1748617204364,-259.82580797,0.00021817,2]
[363183472,1748617204388,-524.54841734,0.00021817,2]
[363183473,1748617204417,-1680.0,0.00021881,2]
[363183474,1748617204442,-151.0,0.00021904,2]
[363183475,1748617204467,-207.4,0.00021904,2]
[363183476,1748617204493,-540.39150797,0.00021916,2]
[363183477,1748617204516,-5008.89278978,0.00021916,2]
[363183478,1748617204540,-252.90102083,0.00021916,5]
[363183479,1748617204564,-150.0,0.00021916,2]
[363183480,1748617204588,-184.04218862,0.00021916,2]
[363183481,1748617204613,-420.0,0.00021917,2]
[363183482,1748617204638,-209.866468,0.00021917,2]
[363183483,1748617204663,-209.866468,0.00021917,2]
[363183484,1748617204688,-209.866468,0.00021917,2]
[363183485,1748617204713,-209.866468,0.00021917,2]
[363183486,1748617204736,-420.0,0.00021917,2]
[363183487,1748617204759,-420.0,0.00021917,2]
[363183488,1748617204783,-420.0,0.00021917,2]
[363183489,1748617204807,-420.0,0.00021917,2]
[363183490,1748617204832,-151.0,0.00021917,2]
[363183491,1748617204856,-151.0,0.00021917,2]
[363183492,1748617204881,-151.0,0.00021917,2]
[363183493,1748617204905,-420.0,0.00021917,2]
[363183494,1748617204931,-1206.63,0.00021917,2]
[363183495,1748617204956,-718.21,0.00021917,2]
[363183496,1748617204980,-151.0,0.00021917,2]
[363183497,1748617205004,-512.32,0.00021917,2]
[363183498,1748617205028,-151.0,0.00021917,2]
[363183499,1748617205051,-999.99,0.00021917,2]
[363183500,1748617205074,-500.0,0.00021917,2]
[363183501,1748617205097,-420.0,0.00021917,2]
[363183502,1748617205121,-810.55,0.00021917,2]
[363183503,1748617205145,-4618.22,0.00021917,2]
[363183504,1748617205173,-423.84,0.00021917,2]
[363183505,1748617205198,-151.0,0.00021917,2]
[363183506,1748617205224,-151.0,0.00021917,2]
[363183507,1748617205252,-151.0,0.00021917,2]
[363183508,1748617205277,-684.33,0.00021917,2]
[363183509,1748617205302,-485.37,0.00021917,2]
[363183510,1748617205327,-937.51,0.00021917,2]
[363183511,1748617205352,-420.0,0.00021917,2]
[363183512,1748617205375,-175.85946133,0.00021917,2]
[363183513,1748617205400,-420.0,0.00021917,2]
[363183514,1748617205424,-577.86,0.00021917,2]
[363183515,1748617205448,-855.55,0.00021917,2]
[363183516,1748617205471,-1420.25,0.00021917,2]
[363183517,1748617205495,-934.84,0.00021917,2]
[363183518,1748617205519,-516.57106863,0.00021917,2]
[363183519,1748617205543,-420.0,0.00021917,2]
[363183520,1748617205567,-1371.77,0.00021917,2]
[363183521,1748617205592,-420.0,0.00021917,2]
[363183522,1748617205616,-1312.23,0.00021917,2]
[363183523,1748617205641,-695.68,0.00021917,2]
[363183524,1748617205665,-414.516796,0.00021917,2]
[363183525,1748617205689,-414.516796,0.00021917,2]
[363183526,1748617205716,-783.58,0.00021917,2]
[363183527,1748617205740,-420.0,0.00021917,2]
[363183528,1748617205765,-420.0,0.00021917,2]
[363183529,1748617205800,-420.0,0.00021917,2]
[363183530,1748617205832,-420.0,0.00021917,2]
[363183531,1748617205857,-414.516796,0.00021917,2]
[363183532,1748617205882,-414.516796,0.00021917,2]
[363183533,1748617205909,-848.45,0.00021917,2]
[363183534,1748617205933,-420.0,0.00021917,2]
[363183535,1748617205957,-671.11,0.00021917,2]
[363183536,1748617205983,-567.81,0.00021917,2]
[363183537,1748617206009,-281.31968623,0.00021917,2]
[363183538,1748617206035,-1347.31,0.00021917,2]
[363183539,1748617206060,-457.97,0.00021917,2]
[363183540,1748617206084,-471.14,0.00021917,2]
[363183541,1748617206109,-420.0,0.00021917,2]
[363183542,1748617206135,-473.5,0.00021917,2]
[363183543,1748617206171,-420.0,0.00021917,2]
[363183544,1748617206197,-585.29,0.00021917,2]
[363183545,1748617206225,-578.6,0.00021917,2]
[363183546,1748617206253,-474.99323258,0.00021917,2]
[363183547,1748617206277,-420.0,0.00021917,2]
[363183548,1748617206301,-420.0,0.00021917,2]
[363183549,1748617206326,-420.0,0.00021917,2]
[363183550,1748617206353,-643.52,0.00021917,2]
[363183551,1748617206378,-450.52,0.00021917,2]
[363183552,1748617206404,-1034.85,0.00021917,2]
[363183553,1748617206428,-1054.86,0.00021917,2]
[363183554,1748617206453,-549.05,0.00021917,2]
[363183555,1748617206478,-927.74,0.00021917,2]
[363183556,1748617206501,-420.0,0.00021917,2]
[363183557,1748617206524,-420.0,0.00021917,2]
[363183558,1748617206553,-461.85,0.00021917,2]
[363183559,1748617206578,-420.0,0.00021917,2]
[363183560,1748617206605,-968.13,0.00021917,2]
[363183561,1748617206630,-420.0,0.00021917,2]
[363183562,1748617206658,-691.27,0.00021917,2]
[363183563,1748617206683,-739.0,0.00021917,2]
[363183564,1748617206708,-420.0,0.00021917,2]
[363183565,1748617206732,-573.87,0.00021917,2]
[363183566,1748617206757,-723.55,0.00021917,2]
[363183567,1748617206781,-420.0,0.00021917,2]
[363183568,1748617206804,-1203.26,0.00021917,2]
[363183569,1748617206828,-420.0,0.00021917,2]
[363183570,1748617206852,-420.0,0.00021917,2]
[363183571,1748617206877,-1163.85,0.00021917,2]
[363183572,1748617206903,-1106.87,0.00021917,2]
[363183573,1748617206932,-1366.26,0.00021917,2]
[363183574,1748617206958,-536.3,0.00021917,2]
[363183575,1748617206983,-420.0,0.00021917,2]
[363183576,1748617207007,-524.33,0.00021917,2]
[363183577,1748617207033,-420.0,0.00021917,2]
[363183578,1748617207058,-208.13850509,0.00021917,2]
[363183579,1748617207083,-543.05429602,0.00021917,2]
[363183580,1748617207108,-1359.74,0.00021917,2]
[363183581,1748617207133,-781.47,0.00021917,2]
[363183582,1748617207158,-548.16,0.00021917,2]
[363183583,1748617207184,-424.05450469,0.00021917,2]
[363183584,1748617207209,-755.02,0.00021917,2]
[363183585,1748617207235,-420.0,0.00021917,2]
[363183586,1748617207260,-420.0,0.00021917,2]
[363183587,1748617207285,-461.34,0.00021917,2]
[363183588,1748617207309,-1132.96,0.00021917,2]
[363183589,1748617207334,-420.0,0.00021917,2]
[363183590,1748617207359,-420.0,0.00021917,2]
[363183591,1748617207384,-420.0,0.00021917,2]
[363183592,1748617207413,-632.76,0.00021917,2]
[363183593,1748617207438,-2372.26,0.00021917,2]
[363183594,1748617207463,-420.0,0.00021917,2]
[363183595,1748617207489,-1154.65,0.00021917,2]
[363183596,1748617207514,-1022.87,0.00021917,2]
[363183597,1748617207538,-521.97,0.00021917,2]
[363183598,1748617207564,-452.1,0.00021917,2]
[363183599,1748617207588,-1155.65,0.00021917,2]
[363183600,1748617207612,-1051.24,0.00021917,2]
[363183601,1748617207637,-420.0,0.00021917,2]
[363183602,1748617207665,-420.0,0.00021917,2]
[363183603,1748617207688,-420.0,0.00021917,2]
[363183604,1748617207711,-420.0,0.00021917,2]
[363183605,1748617207735,-420.0,0.00021917,2]
[363183606,1748617207757,-598.21,0.00021917,2]
[363183607,1748617207781,-420.0,0.00021917,2]
[363183608,1748617207805,-451.31,0.00021917,2]
[363183609,1748617207829,-1752.31,0.00021917,2]
[363183610,1748617207853,-465.5,0.00021917,2]
[363183611,1748617207878,-177.09198861,0.00021917,2]
[363183612,1748617207905,-829.08,0.00021917,2]
[363183613,1748617207931,-625.17,0.00021917,2]
[363183614,1748617207956,-420.0,0.00021917,2]
[363183615,1748617207980,-448.82,0.00021917,2]
[363183616,1748617208004,-1069.31,0.00021917,2]
[363183617,1748617208028,-1442.92,0.00021917,2]
[363183618,1748617208052,-588.33,0.00021917,2]
[363183619,1748617208076,-420.0,0.00021917,2]
[363183620,1748617208102,-454.32,0.00021917,2]
[363183621,1748617208126,-1075.37,0.00021917,2]
[363183622,1748617208154,-459.9,0.00021917,2]
[363183623,1748617208196,-420.0,0.00021917,2]
[363183624,1748617208224,-540.12,0.00021917,2]
[363183625,1748617208249,-420.0,0.00021917,2]
[363183626,1748617208274,-521.77,0.00021917,2]
[363183627,1748617208300,-1188.32,0.00021917,2]
[363183628,1748617208325,-1360.4,0.00021917,2]
[363183629,1748617208349,-1747.0,0.00021917,2]
[363183630,1748617208374,-420.0,0.00021917,2]
[363183631,1748617208402,-420.0,0.00021917,2]
[363183632,1748617208427,-533.44,0.00021917,2]
[363183633,1748617208454,-470.27,0.00021917,2]
[363183634,1748617208478,-420.0,0.00021917,2]
[363183635,1748617208505,-990.12,0.00021917,2]
[363183636,1748617208529,-420.0,0.00021917,2]
[363183637,1748617208554,-1671.73,0.00021917,2]
[363183638,1748617208579,-420.0,0.00021917,2]
[363183639,1748617208605,-656.59,0.00021917,2]
[363183640,1748617208630,-844.11,0.00021917,2]
[363183641,1748617208654,-424.0542155,0.00021917,2]
[363183642,1748617208678,-420.0,0.00021917,2]
[363183643,1748617209094,-1414.41,0.00021917,2]
[363183644,1748617209118,-466.22,0.00021917,2]
[363183645,1748617209145,-845.99,0.00021917,2]
[363183646,1748617209173,-652.58,0.00021917,2]
[363183647,1748617209200,-1933.49,0.00021917,2]
[363183648,1748617209249,-537.16,0.00021917,2]
[363183649,1748617209285,-420.0,0.00021917,2]
[363183650,1748617209311,-420.0,0.00021917,2]
[363183651,1748617209335,-420.0,0.00021917,2]
[363183652,1748617209360,-1119.51,0.00021917,2]
[363183653,1748617209385,-556.13,0.00021917,2]
[363183654,1748617209411,-420.0,0.00021917,2]
[363183655,1748617209436,-1045.39,0.00021917,2]
[363183656,1748617209461,-624.38,0.00021917,2]
[363183657,1748617209491,-420.0,0.00021917,2]
[363183658,1748617209516,-1568.6,0.00021917,2]
[363183659,1748617209540,-551.46,0.00021917,2]
[363183660,1748617209565,-1163.95,0.00021917,2]
[363183661,1748617209589,-759.94,0.00021917,2]
[363183662,1748617209612,-420.0,0.00021917,2]
[363183663,1748617209643,-420.0,0.00021917,2]
[363183664,1748617209668,-3992.87,0.00021917,2]
[363183665,1748617209693,-420.0,0.00021917,2]
[363183666,1748617209717,-901.4,0.00021917,2]
[363183667,1748617209742,-420.0,0.00021917,2]
[363183668,1748617209766,-420.0,0.00021917,2]
[363183669,1748617209789,-581.08,0.00021917,2]
[363183670,1748617209813,-420.0,0.00021917,2]
[363183671,1748617209837,-420.0,0.00021917,2]
[363183672,1748617209861,-420.0,0.00021917,2]
[363183673,1748617209887,-689.27,0.00021917,2]
[363183674,1748617209913,-420.0,0.00021917,2]
[363183675,1748617209938,-420.0,0.00021917,2]
[363183676,1748617209962,-1488.37,0.00021917,2]
[363183677,1748617209986,-559.87,0.00021917,2]
[363183678,1748617210010,-1334.37,0.00021917,2]
[363183679,1748617210036,-420.0,0.00021917,2]
[363183680,1748617210060,-420.0,0.00021917,2]
[363183681,1748617210085,-420.0,0.00021917,2]
[363183682,1748617210111,-2481.78,0.00021917,2]
[363183683,1748617210136,-420.0,0.00021917,2]
[363183684,1748617210165,-918.7,0.00021917,2]
[363183685,1748617210189,-950.91,0.00021917,2]
[363183686,1748617210214,-1174.34,0.00021917,2]
[363183687,1748617210240,-3380.92,0.00021917,2]
[363183688,1748617210263,-420.0,0.00021917,2]
[363183689,1748617210288,-420.0,0.00021917,2]
[363183690,1748617210313,-420.0,0.00021917,2]
[363183691,1748617210337,-420.0,0.00021917,2]
[363183692,1748617210361,-694.97,0.00021917,2]
[363183693,1748617210386,-3988.42,0.00021917,2]
[363183694,1748617210413,-1632.73,0.00021917,2]
[363183695,1748617210438,-420.0,0.00021917,2]
[363183696,1748617210464,-572.47,0.00021917,2]
[363183697,1748617210488,-1057.4,0.00021917,2]
[363183698,1748617210526,-867.35,0.00021917,2]
[363183699,1748617210553,-420.0,0.00021917,2]
[363183700,1748617210578,-420.0,0.00021917,2]
[363183701,1748617210603,-420.0,0.00021917,2]
[363183702,1748617210628,-650.68,0.00021917,2]
[363183703,1748617210654,-420.0,0.00021917,2]
[363183704,1748617210678,-443.61,0.00021917,2]
[363183705,1748617210704,-604.13,0.00021917,2]
[363183706,1748617210728,-420.0,0.00021917,2]
[363183707,1748617210752,-1629.02,0.00021917,2]
[363183708,1748617210777,-1280.0,0.00021917,2]
[363183709,1748617210802,-420.0,0.00021917,2]
[363183710,1748617210826,-420.0,0.00021917,2]
[363183711,1748617210852,-6986.33,0.00021917,2]
[363183712,1748617210876,-420.0,0.00021917,2]
[363183713,1748617210901,-790.92,0.00021917,2]
[363183714,1748617210923,-420.0,0.00021917,2]
[363183715,1748617210948,-581.18,0.00021917,2]
[363183716,1748617210973,-1003.61,0.00021917,2]
[363183717,1748617210996,-3140.97,0.00021917,2]
[363183718,1748617211021,-758.25,0.00021917,2]
[363183719,1748617211049,-7127.85,0.00021917,2]
[363183720,1748617211073,-420.0,0.00021917,2]
[363183721,1748617211099,-958.76,0.00021917,2]
[363183722,1748617211123,-420.0,0.00021917,2]
[363183723,1748617211149,-420.0,0.00021917,2]
[363183724,1748617211176,-1007.66,0.00021917,2]
[363183725,1748617211200,-2588.99,0.00021917,2]
[363183726,1748617211225,-420.0,0.00021917,2]
[363183727,1748617211250,-420.0,0.00021917,2]
[363183728,1748617211274,-1510.53,0.00021917,2]
[363183729,1748617211298,-679.0,0.00021917,2]
[363183730,1748617211323,-1719.24,0.00021917,2]
[363183731,1748617211348,-735.79,0.00021917,2]
[363183732,1748617211373,-1796.31,0.00021917,2]
[363183733,1748617211399,-2369.63,0.00021917,2]
[363183734,1748617211424,-420.0,0.00021917,2]
[363183735,1748617211448,-1718.59,0.00021917,2]
[363183736,1748617211473,-454.35,0.00021917,2]
[363183737,1748617211499,-1018.78,0.00021917,2]
[363183738,1748617211525,-450.87,0.00021917,2]
[363183739,1748617211549,-1296.48,0.00021917,2]
[363183740,1748617211574,-689.91,0.00021917,2]
[363183741,1748617211603,-420.0,0.00021917,2]
[363183742,1748617211627,-484.28477293,0.00021917,2]
[363183743,1748617211654,-420.0,0.00021917,2]
[363183744,1748617211679,-420.0,0.00021917,2]
[363183745,1748617211703,-1471.75,0.00021917,2]
[363183746,1748617211728,-513.66,0.00021917,2]
[363183747,1748617211757,-554.12,0.00021917,2]
[363183748,1748617211783,-679.77,0.00021917,2]
[363183749,1748617211808,-852.14,0.00021917,2]
[363183750,1748617211833,-1417.57,0.00021917,2]
[363183751,1748617211857,-1362.63,0.00021917,2]
[363183752,1748617211882,-1005.21,0.00021917,2]
[363183753,1748617211907,-420.0,0.00021917,2]
[363183754,1748617211932,-420.0,0.00021917,2]
[363183755,1748617211957,-1120.17,0.00021917,2]
[363183756,1748617211983,-420.0,0.00021917,2]
[363183757,1748617212007,-604.26,0.00021917,2]
[363183758,1748617212033,-1436.71,0.00021917,2]
[363183759,1748617212060,-558.31,0.00021917,2]
[363183760,1748617212087,-625.09,0.00021917,2]
[363183761,1748617212113,-719.53,0.00021917,2]
[363183762,1748617212147,-1323.92,0.00021917,2]
[363183763,1748617212178,-420.0,0.00021917,2]
[363183764,1748617212202,-560.34,0.00021917,2]
[363183765,1748617212228,-3792.6,0.00021917,2]
[363183766,1748617212255,-2856.48,0.00021917,2]
[363183767,1748617212280,-420.0,0.00021917,2]
[363183768,1748617212306,-7206.5,0.00021917,2]
[363183769,1748617212332,-476.54,0.00021917,2]
[363183770,1748617212357,-1097.01,0.00021917,2]
[363183771,1748617212381,-1851.78,0.00021917,2]
[363183772,1748617212407,-1381.84,0.00021917,2]
[363183773,1748617212432,-420.0,0.00021917,2]
[363183774,1748617212457,-1080.28,0.00021917,2]
[363183775,1748617212482,-500.0,0.00021917,2]
[363183776,1748617212507,-2213.36,0.00021917,2]
[363183777,1748617212531,-420.0,0.00021917,2]
[363183778,1748617212555,-2219.64,0.00021917,2]
[363183779,1748617212580,-3031.36,0.00021917,2]
[363183780,1748617212604,-733.37,0.00021917,2]
[363183781,1748617212627,-420.0,0.00021917,2]
[363183782,1748617212651,-1671.25,0.00021917,2]
[363183783,1748617212675,-1137.92,0.00021917,2]
[363183784,1748617212699,-420.0,0.00021917,2]
[363183785,1748617212723,-1161.31,0.00021917,2]
[363183786,1748617212747,-3926.28,0.00021917,2]
[363183787,1748617212771,-420.0,0.00021917,2]
[363183788,1748617212806,-3259.46,0.00021917,2]
[363183789,1748617212836,-2641.29,0.00021917,2]
[363183790,1748617212860,-1333.73,0.00021917,2]
[363183791,1748617212883,-2300.13,0.00021917,2]
[363183792,1748617212908,-978.58,0.00021917,2]
[363183793,1748617212932,-840.34,0.00021917,2]
[363183794,1748617212956,-452.72,0.00021917,2]
[363183795,1748617212981,-6432.48,0.00021917,2]
[363183796,1748617213006,-1736.8,0.00021917,2]
[363183797,1748617213031,-692.2,0.00021917,2]
[363183798,1748617213056,-1024.83,0.00021917,2]
[363183799,1748617213080,-563.6,0.00021917,2]
[363183800,1748617213105,-4639.65,0.00021917,2]
[363183801,1748617213128,-432.18,0.00021917,2]
[363183802,1748617213154,-420.0,0.00021917,2]
[363183803,1748617213180,-1475.81,0.00021917,2]
[363183804,1748617213209,-1072.87,0.00021917,2]
[363183805,1748617213232,-420.0,0.00021917,2]
[363183806,1748617213259,-420.0,0.00021917,2]
[363183807,1748617213285,-555.94,0.00021917,2]
[363183808,1748617213310,-420.0,0.00021917,2]
[363183809,1748617213336,-627.04,0.00021917,2]
[363183810,1748617213363,-712.74,0.00021917,2]
[363183811,1748617213388,-791.31,0.00021917,2]
[363183812,1748617213418,-11813.82,0.00021917,2]
[363183813,1748617213442,-420.0,0.00021917,2]
[363183814,1748617213471,-420.0,0.00021917,2]
[363183815,1748617213495,-1579.0,0.00021917,2]
[363183816,1748617213519,-2753.04,0.00021917,2]
[363183817,1748617213544,-1181.11,0.00021917,2]
[363183818,1748617213567,-1172.18,0.00021917,2]
[363183819,1748617213592,-1070.18,0.00021917,2]
[363183820,1748617213616,-415.1143761,0.00021917,2]
[363183821,1748617213639,-548.17,0.00021917,2]
[363183822,1748617213668,-420.0,0.00021917,2]
[363183823,1748617214028,-659.51,0.00021917,2]
[363183824,1748617214053,-751.59,0.00021917,2]
[363183825,1748617214078,-507.67,0.00021917,2]
[363183826,1748617214101,-11306.56,0.00021917,2]
[363183827,1748617214125,-1273.79,0.00021917,2]
[363183828,1748617214154,-670.71,0.00021917,2]
[363183829,1748617214181,-1205.13,0.00021917,2]
[363183830,1748617214207,-752.1,0.00021917,2]
[363183831,1748617214231,-420.0,0.00021917,2]
[363183832,1748617214258,-669.47,0.00021917,2]
[363183833,1748617214283,-154.82,0.00021917,2]
[363183834,1748617214306,-929.78,0.00021917,2]
[363183835,1748617214331,-893.91,0.00021917,2]
[363183836,1748617214356,-1509.01,0.00021917,2]
[363183837,1748617214379,-420.0,0.00021917,2]
[363183838,1748617214406,-5415.34,0.00021917,2]
[363183839,1748617214429,-18137.32,0.00021917,2]
[363183840,1748617214454,-1605.71,0.00021917,2]
[363183841,1748617214479,-1199.81,0.00021917,2]
[363183842,1748617214502,-444.58,0.00021917,2]
[363183843,1748617214525,-1585.04,0.00021917,2]
[363183844,1748617214549,-426.82205436,0.00021917,2]
[363183845,1748617214572,-420.0,0.00021917,2]
[363183846,1748617214596,-3000.33,0.00021917,2]
[363183847,1748617214619,-1483.97,0.00021917,2]
[363183848,1748617214641,-787.57,0.00021917,2]
[363183849,1748617214666,-420.0,0.00021917,2]
[363183850,1748617214690,-7281.25,0.00021917,2]
[363183851,1748617214713,-420.0,0.00021917,2]
[363183852,1748617214737,-767.78,0.00021917,2]
[363183853,1748617214761,-2652.49,0.00021917,2]
[363183854,1748617214784,-761.09,0.00021917,2]
[363183855,1748617214808,-724.54,0.00021917,2]
[363183856,1748617214836,-457.71,0.00021917,2]
[363183857,1748617214861,-9052.35,0.00021917,2]
[363183858,1748617214886,-543.6,0.00021917,2]
[363183859,1748617214917,-593.59,0.00021917,2]
[363183860,1748617214943,-917.55,0.00021917,2]
[363183861,1748617214967,-420.0,0.00021917,2]
[363183862,1748617214991,-421.53886107,0.00021917,2]
[363183863,1748617215015,-1307.52,0.00021917,2]
[363183864,1748617215040,-6584.52,0.00021917,2]
[363183865,1748617215067,-420.0,0.00021917,2]
[363183866,1748617215091,-420.0,0.00021917,2]
[363183867,1748617215115,-540.62,0.00021917,2]
[363183868,1748617215138,-1257.01,0.00021917,2]
[363183869,1748617215169,-4613.88,0.00021917,2]
[363183870,1748617215191,-2925.23,0.00021917,2]
[363183871,1748617215215,-420.0,0.00021917,2]
[363183872,1748617215237,-420.0,0.00021917,2]
[363183873,1748617215261,-420.0,0.00021917,2]
[363183874,1748617215285,-976.66,0.00021917,2]
[363183875,1748617215308,-420.0,0.00021917,2]
[363183876,1748617215332,-420.0,0.00021917,2]
[363183877,1748617215356,-5594.98,0.00021917,2]
[363183878,1748617215382,-466.5,0.00021917,2]
[363183879,1748617215407,-1762.18,0.00021917,2]
[363183880,1748617215429,-420.0,0.00021917,2]
[363183881,1748617215453,-1939.59,0.00021917,2]
[363183882,1748617215477,-1156.11,0.00021917,2]
[363183883,1748617215500,-589.85355291,0.00021917,2]
[363183884,1748617215522,-1078.28,0.00021917,2]
[363183885,1748617215545,-420.0,0.00021917,2]
[363183886,1748617215567,-420.0,0.00021917,2]
[363183887,1748617215592,-914.51,0.00021917,2]
[363183888,1748617215615,-1431.37,0.00021917,2]
[363183889,1748617215637,-612.51,0.00021917,2]
[363183890,1748617215661,-2189.16,0.00021917,2]
[363183891,1748617215684,-1378.15,0.00021917,2]
[363183892,1748617215706,-420.0,0.00021917,2]
[363183893,1748617215735,-420.0,0.00021917,2]
[363183894,1748617215759,-1024.96,0.00021917,2]
[363183895,1748617215783,-420.0,0.00021917,2]
[363183896,1748617215806,-1113.16,0.00021917,2]
[363183897,1748617215829,-420.0,0.00021917,2]
[363183898,1748617215854,-420.0,0.00021917,2]
[363183899,1748617215880,-970.77,0.00021917,2]
[363183900,1748617215905,-132961.28,0.00021917,2]
[363183901,1748617215930,-420.0,0.00021917,2]
[363183902,1748617215953,-565.06,0.00021917,2]
[363183903,1748617215976,-420.0,0.00021917,2]
[363183904,1748617215999,-1023.83,0.00021917,2]
[363183905,1748617216023,-420.0,0.00021917,2]
[363183906,1748617216048,-3186.03,0.00021917,2]
[363183907,1748617216072,-518.43,0.00021917,2]
[363183908,1748617216096,-1712.03,0.00021917,2]
[363183909,1748617216121,-9351.66,0.00021917,2]
[363183910,1748617216147,-1025.85,0.00021917,2]
[363183911,1748617216176,-3047.26,0.00021917,2]
[363183912,1748617216201,-420.0,0.00021917,2]
[363183913,1748617216226,-420.0,0.00021917,2]
[363183914,1748617216261,-894.44,0.00021917,2]
[363183915,1748617216287,-3626.02,0.00021917,2]
[363183916,1748617216311,-466.35,0.00021917,2]
[363183917,1748617216335,-565.59,0.00021917,2]
[363183918,1748617216358,-3663.38,0.00021917,2]
[363183919,1748617216381,-683.94,0.00021917,2]
[363183920,1748617216407,-909.22,0.00021917,2]
[363183921,1748617216431,-1340.27,0.00021917,2]
[363183922,1748617216455,-943.55,0.00021917,2]
[363183923,1748617216480,-425.27254266,0.00021917,2]
[363183924,1748617216504,-599.91,0.00021917,2]
[363183925,1748617216528,-2412.99,0.00021917,2]
[363183926,1748617216554,-2117.84,0.00021917,2]
[363183927,1748617216577,-7794.44,0.00021917,2]
[363183928,1748617216602,-420.0,0.00021917,2]
[363183929,1748617216627,-439.66,0.00021917,2]
[363183930,1748617216651,-2821.31,0.00021917,2]